Cogmind - Beta 16 @@@ ROGUE MODE // 2025.11.11 @ 11:15:54 Player: ClassActJerk Result: Destroyed by X2-ZO3(R) with Subdweller Machine Gun Performance ------------- Evolutions (0) 0 Regions Visited (3) 600 Robots Destroyed (13) 65 Value Destroyed (357) 357 Prototype IDs (0) 0 Alien Tech Used (0) 0 Bonus (0) 0 TOTAL SCORE: 1022 Bonus ------- None Cogmind --------- Core Integrity 0/250 Matter 280/300 Energy 99/100 System Corruption 2% Temperature Cool (0) Movement Flying (192) Ox2 Location -10/Subcaves Parts ------- > --- POWER (1) -------- (None) > --- PROPULSION (2) --- VTOL Module VTOL Module > --- UTILITY (2) ------ Large Storage Unit Signal Interpreter > --- WEAPON (2) ------- Small Laser Heavy Assault Rifle > --- INVENTORY (15) --- Light Ion Engine Aluminum Leg Aluminum Leg VTOL Module Visual Processing Unit Signal Interpreter Light Armor Plating Light Armor Plating Small Laser Particle Cannon Particle Cannon Heavy Assault Rifle Heavy Assault Rifle Peak State ------------ > --- POWER ------------ Light Nuclear Core > --- PROPULSION ------- VTOL Module VTOL Module > --- UTILITY ---------- Large Storage Unit Signal Interpreter > --- WEAPON ----------- Small Laser Heavy Assault Rifle > --- INVENTORY -------- Aluminum Leg Aluminum Leg VTOL Module VTOL Module Visual Processing Unit Signal Interpreter Light Armor Plating Light Armor Plating Small Laser Particle Cannon Particle Cannon Heavy Assault Rifle Heavy Assault Rifle [Rating: 14] Favorites ----------- Power Light Nuclear Core Power Core Light Nuclear Core Propulsion VTOL Module Leg Aluminum Leg Flight Unit VTOL Module Utility Signal Interpreter Storage Large Storage Unit Processor Signal Interpreter Weapon Small Laser Energy Gun Small Laser Ballistic Gun Heavy Assault Rifle Build | -11 -10 -10 -10 ------- Run | Yrd Mat Min Sub Slots Evolved . | . . . . Power . | . . . . Propulsion . | . . . . Utility . | . . . . Weapon . | . . . . Parts Attached 18 | 1 16 1 . Power 1 | . 1 . . Engine . | . . . . Core 1 | . 1 . . Reactor . | . . . . Propulsion 8 | . 7 1 . Treads . | . . . . Leg 5 | . 5 . . Wheel . | . . . . Hover . | . . . . Flight 3 | . 2 1 . Utility 3 | 1 2 . . Device . | . . . . Storage 2 | 1 1 . . Processor 1 | . 1 . . Hackware . | . . . . Protection . | . . . . Artifact . | . . . . Weapon 6 | . 6 . . Energy Gun 4 | . 4 . . Energy Cannon . | . . . . Ballistic Gun 2 | . 2 . . Ballistic Cannon . | . . . . Launcher . | . . . . Special Weapon . | . . . . Impact Weapon . | . . . . Slashing Weapon . | . . . . Piercing Weapon . | . . . . Special Melee Weapon . | . . . . Unidentified Prototypes . | . . . . Parts Lost 3 | . 2 . 1 Power 1 | . . . 1 Propulsion . | . . . . Utility . | . . . . Weapon 2 | . 2 . . Highest Loss Streak 2 | . 2 . 1 To Critical Strikes . | . . . . Average Backups 9 | 3 5 13 13 Power . | . . 1 1 Propulsion 2 | 1 2 3 3 Utility 2 | . . 4 4 Weapon 3 | 2 2 5 5 Tool/Special . | . . . . Unused Backups 14 | . 2 . 12 Power . | . . . . Propulsion 4 | . 1 . 3 Utility 5 | . 1 . 4 Weapon 5 | . . . 5 Tool/Special . | . . . . Average Slot Usage (%) 91 | . 83 99 99 Core 9 | . 5 14 13 Leg 7 | . 15 . . Flight 17 | . 6 27 28 Storage 14 | . 14 14 14 Processor 13 | . 13 14 14 Energy Gun 17 | . 21 14 14 Ballistic Gun 9 | . 5 14 14 Peak Build Rating 14 | 1 14 13 13 Average Rating 10 | . 7 12 12 On Entrance 7 | . 1 14 13 Avg Prop Armor Cover (%) . | . . . . Naked Turns . | . . . . Heaviest Build 30 | 5 30 29 29 Greatest Support 20 | 3 20 8 8 Greatest Overweight (x) 3 | 1 3 3 3 Average Overweight (x) 2 | . 1 3 2 Largest Inventory Capacity 15 | 8 15 15 15 Average Capacity 14 | 7 13 15 15 Most Carried 14 | 5 14 14 13 Average Carried 9 | 4 5 13 13 Final Capacity 15 | 8 15 15 15 Final Carried 14 | 5 14 13 13 Class Distribution -------------------- 93% | Mutant 6% | Scavenger-Mutant Dominant Class ---------------- Mutant | -10/Materials Mutant | -10/Mines Mutant | -10/Subcaves Resources | -11 -10 -10 -10 ----------- Run | Yrd Mat Min Sub Matter Collected 463 | 210 209 35 9 Remotely . | . . . . Salvage Created 390 | . 390 . . Parts 22 | . 22 . . Haulers Intercepted . | . . . . Recyclers Shooed . | . . . . Parts Field Recycled . | . . . . Retrieved Matter . | . . . . Parts Self-Destructed . | . . . . Prevented . | . . . . Parts Restored . | . . . . Kills | -11 -10 -10 -10 ------- Run | Yrd Mat Min Sub Combat Hostiles Destroyed 10 | . 10 . . Guns 8 | . 8 . . AOE 2 | . 2 . . Classes Destroyed 5 | . 5 . . Worker 1 | . 1 . . Operator 1 | . 1 . . Watcher 1 | . 1 . . Swarmer 3 | . 3 . . Grunt 7 | . 7 . . Best Kill Streak 4 | . 4 . . Combat Bots Only 3 | . 3 . . Max Kills in Single Turn 2 | . 2 . . Gunslinging . | . . . . Exploded 2 | . 2 . . Melee . | . . . . Uniques/NPCs Destroyed . | . . . . Combat | -11 -10 -10 -10 -------- Run | Yrd Mat Min Sub Hostile Shots Fired 71 | . 60 . 11 Missed 16 | . 14 . 2 Hits 55 | . 46 . 9 Projectile 55 | . 46 . 9 AOE 1 | . . . 1 Part Disruptions 1 | . 1 . . Damage Taken 866 | . 639 . 227 Core 255 | . 160 . 95 Absorbed by Shields . | . . . . Core Remaining (%) 100 | 100 . . . Volleys Fired 40 | . 36 . 4 Largest 2 | . 2 . 2 Hottest 105 | . 105 . 63 Shots Fired 77 | . 69 . 8 Gun 77 | . 69 . 8 Cannon . | . . . . Launcher . | . . . . Special . | . . . . Kinetic 22 | . 18 . 4 Thermal 55 | . 51 . 4 Explosive . | . . . . Electromagnetic . | . . . . Robot Hit Streak 11 | . 11 . 6 Robot Miss Streak 3 | . 3 . 1 Penetration Max . | . . . . Secondary Targets . | . . . . Shots Hit Robots 53 | . 46 . 7 Core Hits 21 | . 21 . . Critical Kills . | . . . . Critical Parts Destroyed . | . . . . Critical Strikes . | . . . . Melee Attacks . | . . . . Impact . | . . . . Slashing . | . . . . Piercing . | . . . . Sneak Attacks . | . . . . Combat Hostiles . | . . . . Follow-up Attacks . | . . . . Damage Inflicted 792 | . 700 . 92 Guns 706 | . 614 . 92 Cannons . | . . . . Explosions 86 | . 86 . . Melee . | . . . . Ramming . | . . . . Kinetic 210 | . 162 . 48 Thermal 496 | . 452 . 44 Explosive . | . . . . Electromagnetic 86 | . 86 . . Impact . | . . . . Slashing . | . . . . Piercing . | . . . . Highest Corruption 2 | . 2 2 2 Average Corruption 1 | . 1 2 2 Corruption Purged . | . . . . Corruption Blocked . | . . . . Effects 24 | . 5 11 8 Message Errors 3 | . . 2 1 Matter Fused 7 | . . 3 4 Heat Flow Errors 1 | . . 1 . Energy Discharges 5 | . 2 3 . Data Loss (minor) 4 | . . 2 2 Data Loss (major) 3 | . 2 . 1 Misfires 1 | . 1 . . Overload Shots . | . . . . Overflow Damage . | . . . . Projectiles . | . . . . Explosions . | . . . . Melee . | . . . . Knockbacks . | . . . . Impact . | . . . . Kinetic . | . . . . Secondary . | . . . . Self-Inflicted Damage 43 | . 43 . . Shots 2 | . 2 . . Rammed . | . . . . Targets Rammed . | . . . . Kicked . | . . . . Crushed . | . . . . Highest Temperature 237 | . 207 237 . Average Temperature 68 | . 62 122 . Received Heat Transfer 297 | . 297 . . Siege Activations . | . . . . Martial Activations . | . . . . Shielding Activations . | . . . . Robots Disrupted . | . . . . Combat Hostiles . | . . . . Robots Corrupted . | . . . . Combat Hostiles . | . . . . Parts Fried . | . . . . Impact Corruptions . | . . . . Robots Melted . | . . . . Combat Hostiles . | . . . . Parts Melted 2 | . 2 . . Heat Transferred 1120 | . 1020 . 100 Parts Sabotaged . | . . . . Parts Stolen . | . . . . Parts Stripped . | . . . . Power Chain Reactions . | . . . . Alert | -11 -10 -10 -10 ------- Run | Yrd Mat Min Sub Maximum Alert Level . | . . . . Low Security (%) 100 | 100 100 100 . Level 1 . | . . . . Level 2 . | . . . . Level 3 . | . . . . Level 4 . | . . . . Level 5 . | . . . . High Security . | . . . . Max Security . | . . . . Peak Influence 129 | . 129 33 . Initial 33 | . . 33 . Average 19 | . 29 2 . Influence Increases 338 | . 338 . . Destroy 0b10 Robot/C 200 | . 200 . . Destroy 0b10 Robot/NC 15 | . 15 . . Destroy Leader 62 | . 62 . . Successful Hack 14 | . 14 . . Disable Machine 45 | . 45 . . Destroy Structure 2 | . 2 . . Influence Decreases 338 | . 253 85 . Entered New Map 52 | . . 52 . Time Decay 269 | . 236 33 . Lost Part 17 | . 17 . . Squads Dispatched 3 | . 3 . . Investigation . | . . . . Extermination . | . . . . Reinforcement 3 | . 3 . . Assault . | . . . . Garrison . | . . . . Intercept . | . . . . Searches Triggered . | . . . . Construction Impeded . | . . . . Haulers Reinforced . | . . . . Active Scanning Responses . | . . . . Cargo Convoy Interrupts . | . . . . Stealth | -11 -10 -10 -10 --------- Run | Yrd Mat Min Sub Distress Signals 4 | . 4 . . Communications Jammed . | . . . . Distress Signals . | . . . . Times Spotted 23 | . 21 . 2 Peak Tracking Total 4 | . 4 . 2 Tactical Retreats . | . . . . Traps | -11 -10 -10 -10 ------- Run | Yrd Mat Min Sub Traps Triggered 1 | . 1 . . Indirectly . | . . . . Trap Hack Attempts . | . . . . Triggered . | . . . . Disarmed . | . . . . Reprogrammed . | . . . . Reused . | . . . . Traps Extracted . | . . . . Installed . | . . . . Triggered . | . . . . Machines | -11 -10 -10 -10 ---------- Run | Yrd Mat Min Sub Machines Disabled 3 | . 3 . . Max in Single Turn 3 | . 3 . . Machines Repaired . | . . . . Machines Dismantled . | . . . . Machines Sabotaged . | . . . . Overloaded Fab Kills . | . . . . Hacking | -11 -10 -10 -10 --------- Run | Yrd Mat Min Sub Machines Accessed 1 | . 1 . . Terminals 1 | . 1 . . Fabricators . | . . . . Repair Stations . | . . . . Recycling Units . | . . . . Scanalyzers . | . . . . Garrison Access . | . . . . Total Hacks 2 | . 2 . . Successful 1 | . 1 . . Failed 1 | . 1 . . Catastrophic . | . . . . Database Lockouts . | . . . . Manual . | . . . . Terminals 2 | . 2 . . Fabricators . | . . . . Repair Stations . | . . . . Recycling Units . | . . . . Scanalyzers . | . . . . Garrison Access . | . . . . Terminal Hacks 1 | . 1 . . Terminal Index 1 | . 1 . . Fabricator Hacks . | . . . . Repair Station Hacks . | . . . . Recycling Unit Hacks . | . . . . Scanalyzer . | . . . . Garrison Access Hacks . | . . . . Unauthorized Hacks . | . . . . Terminals . | . . . . Fabricators . | . . . . Repair Stations . | . . . . Recycling Units . | . . . . Scanalyzers . | . . . . Garrison Access . | . . . . Data Cores Recovered . | . . . . Used . | . . . . Hacking Detections 1 | . 1 . . Full Trace Events . | . . . . Feedback Events . | . . . . Feedback Blocked . | . . . . Robot Schematics Acquired . | . . . . Robots Built . | . . . . Authchips . | . . . . Time . | . . . . Total Robot Build Rating . | . . . . Part Schematics Acquired . | . . . . Parts Built . | . . . . Authchips . | . . . . Time . | . . . . Total Part Build Rating . | . . . . Part Studies Acquired . | . . . . Parts Repaired . | . . . . Time . | . . . . Parts Recycled . | . . . . Recycled Matter . | . . . . Retrieved Matter . | . . . . Retrieved Components . | . . . . Parts Scanalyzed . | . . . . Part Schematics Acquired . | . . . . Parts Damaged . | . . . . Bothacking | -11 -10 -10 -10 ------------ Run | Yrd Mat Min Sub Used RIF Installer . | . . . . Robots Hacked . | . . . . Non-combat . | . . . . Combat . | . . . . Robot Hacks Applied . | . . . . Relay Couplers Released . | . . . . Fabnet Peak Effective % . | . . . . Robots Rewired . | . . . . Allies Hacked . | . . . . Hacks Repelled . | . . . . Allies | -11 -10 -10 -10 -------- Run | Yrd Mat Min Sub Total Allies . | . . . . Largest Group . | . . . . Highest-Rated Group . | . . . . Highest-Rated Ally . | . . . . Total Orders . | . . . . Ally Attacks . | . . . . Total Damage . | . . . . Kills . | . . . . Allies Corrupted . | . . . . Allies Melted . | . . . . Intel | -11 -10 -10 -10 ------- Run | Yrd Mat Min Sub Active Infowar (turns) . | . . . . Robot Analysis Total . | . . . . Derelict Logs Recovered 3 | . . 2 1 Drone Launches . | . . . . Drone Recoveries . | . . . . Exploration | -11 -10 -10 -10 ------------- Run | Yrd Mat Min Sub Turns Passed 2566 | 42 1277 653 594 Spaces Moved 851 | 44 374 218 215 Core 119 | 44 75 . . Treads . | . . . . Legs 209 | . 209 . . Wheels . | . . . . Hover . | . . . . Flight 523 | . 90 218 215 Fastest Speed 50 | 50 100 272 192 Average Speed 230 | 80 200 272 270 Slowest Speed 272 | 100 272 272 272 Overloaded Moves . | . . . . Propulsion Burnouts . | . . . . Robots Hopped . | . . . . Potential Cave-ins . | . . . . Cave-ins Triggered . | . . . . Exploration Rate (%) 32 | 4 55 51 21 Regions Visited 3 Branch Regions 2 Pre-discovered Areas . | . . . . Known Exits Taken 2 | . 1 1 . Unknown Exits Taken 1 | 1 . . . Scrap Searched 1 | . . 1 . Spaces Dug . | . . . . Terrain Destroyed . | . . . . Melee . | . . . . Projectile . | . . . . AOE . | . . . . Terrain Rammed . | . . . . Walls Destroyed . | . . . . Machines Disabled . | . . . . Actions | -11 -10 -10 -10 --------- Run | Yrd Mat Min Sub Total 1386 | 49 838 280 219 Wait 437 | . 376 61 . Move 848 | 43 373 217 215 Hop . | . . . . Pick Up 32 | 5 27 . . Fast Attach 1 | 1 . . . Attach 14 | . 13 1 . Detach . | . . . . Swap 3 | . 3 . . Drop 11 | . 10 1 . Fire 40 | . 36 . 4 Melee . | . . . . Ram . | . . . . Kick . | . . . . Crush . | . . . . Escape Stasis . | . . . . Rewire . | . . . . Trap . | . . . . Miscellaneous . | . . . . Route ------- -11/Scrapyard -10/Materials (discovered 2 exits: *Min x2) -10/Mines -10/Subcaves History --------- Turn | Location | Event 2 | -11/Scrapyard | Met Revision 17 8 | -11/Scrapyard | Discovered new exit (range 13) 43 | -11/Scrapyard | Entered Materials 332 | -10/Materials | Build established: Mutant 673 | -10/Materials | Discovered new exit (range 16) 909 | -10/Materials | Core integrity fell below 50% 1128 | -10/Materials | Discovered new exit (range 6) 1139 | -10/Materials | Identified exit to Mines 1320 | -10/Materials | Entered Mines 1361 | -10/Mines | Met a Derelict bent on vengeance 1434 | -10/Mines | Learned Materials stockpile data 1959 | -10/Mines | Discovered new exit (range 5) 1968 | -10/Mines | Identified exit to Subcaves 1973 | -10/Mines | Entered Subcaves 2564 | -10/Subcaves | Core integrity fell below 20% 2567 | -10/Subcaves | Destroyed by X2-ZO3(R) with Subdweller Machine Gun Last Messages --------------- 01966_ T-07 Excavator is excavating. 01966_ U-05 Engineer lays Concrete. 01968_ EXIT=IDENTIFIED: SUBCAVES 01969_ U-05 Engineer builds a Wall. 01970_ T-07 Excavator is excavating. LOCATION=SUBCAVES AMBIENT_HEAT=-10 GOAL=ESCAPE 02015_ System corrupted: Component data lost. 02156_ System corrupted: Matter fused (-6). 02221_ Acquired derelict log, extracted data. Data stored: Storage entrances (x1). 02294_ System corrupted: Substantial component data lost. 02367_ System corrupted: Matter fused (-5). 02447_ Acquired 9 matter. 02463_ CQMA7X|7/BCMH AUDWYHD6VN5KPR/2 02544_ System corrupted: Matter fused (-6). 02551_ Lgt. Nuclear Core destroyed. Map ----- +----------------------------------------------------+ | ??????# ##????????# ????????????????????? | | ??????# ##??????????? ???????????????????? | | ??????# ##????????????? ???????????????????? | | ??????# ##?????????????? ??????????????????? | | ??????## "##?????????????????????????????????? | | ???????### "##??? ???????????????????????????? | | ?????????# #??? "?????????????????????????? | | ?????????## ##??? ""????????????????????????? | | ??????????# #???? ???????????????????????? | | ???????#### ###?#""" ???????????????????????? | | ???????# ### """????????????????????????? | | ???????# " """????????????????????????? | | ???????##### " "#????????? ???????????????? | | ???????????# """"##???????? ?????????????? | | ???????????### ##???????? ???????????? | | ?????????????##" ##???????? ???????????? | | ??????????????#""" ##?????? ??????????? | | ??????????????##"""" ##????? ??????????? | | ???????????????# """" #????# ?????????? | | ??????????????## """ ##### ?????????? | | ?????????# ## ?????????? | | ????????# ?????????? | | ???????? ?????????? | | ????????? #### R ??????????? | | ????????? ???# R ##?????????????? | | ?????????? ??## @ ;# #####??????????????? | | ?????????? ??# ;###??????????????????? | | ????????????# ## ; #???????????????????? | | ?????????????????#;; ;##???????????????????? | | ????????????????#;; ;;#????????????????????? | | ????????????????#; ; #????????????????????? | | ????????????????##; ; #????????????????????? | | ?????????????????#;; ## ????????????????????? | | ?????????????????# ;; ###???????????????????? | | ?????????????????# ; #????????????????????? | | ?????????????????##### #????????????????????? | | ????????????????????## #????????????????????? | | ????????????????????# ##????????????????????? | | ????????????????????# ##?????????????????????? | | ????????????????????## #??????????????????????? | | ?????????????????????## ##?????????????????????? | | ?????????????????????## ###???????????????????? | | ???????????????????### ##??????????????????? | | ??????????????????## #??????????????????? | | ??????????????????# ### ##??????????????????? | | ?????????????????## ####?####???????????????????? | | ?????????????????# #???????????????????????????? | | ?????????????????#####???????????????????????????? | | ?????????????????????????????????????????????????? | | ?????????????????????????????????????????????????? | +----------------------------------------------------+ Best States ------------- Heat Dissipation 25 Energy Generation 14 Energy Capacity 160 Matter Stores 300 Matter Capacity 300 Sight Range 16 Terrain Scan Density 10 Evasion (%) 50 Item Schematics ----------------- None Robot Schematics ------------------ None Fabricated ------------ Nothing Repaired ---------- Nothing Studied --------- None Alien Tech Used ----------------- None Achievements -------------- None Challenges ------------ None Game ------ Seed ArchitectDrainedRailcannon Manual? 0 Play Time 00:11:59 Cumulative 19.7 hours Start 2025.11.11 @ 11:05:04 End 2025.11.11 @ 11:15:54 Sessions 1 Manual Loads 0 Difficulty Rogue Special Mode None Game No. 57 Rogue 57 Adventurer 0 Explorer 0 Win Type - Total 0 Types 0/0/0/0/0/0/0/0/0/0 Lore% 5 Gallery% 18 Achievement% 14 Wizard Run 0 Options --------- Layout 1 ASCII 0 Keyboard 0 Movement Mouse Keybinds 0 Fullscreen 1 Font 24/Terminus Map View 50x35 Zoom Use 0% Tactical HUD 1 Map Filters NONE Filters NONE Steam 1 RUN: ccc682b6-b8c4-42c7-b20b-092cd95cf4d6